bitfinex/quotes_SOLUSD_20250705
["timestamp","ask_amount","ask_price","bid_price","bid_amount"]
[1751698143293,8.2943221,148.46,148.38,6.73936729]
[1751698143493,5.37174795,148.46,148.41,3.81334795]
[1751698143699,3.81334795,148.45,148.41,3.81334795]
[1751698144008,3.81334795,148.45,148.4,3.81334795]
[1751698144208,1.5584,148.46,148.39,18.64964886]
[1751698144397,3.81334795,148.45,148.41,3.81334795]
[1751698144998,21.1239983,148.47,148.39,18.64964886]
[1751698144999,3.81334795,148.46,148.42,10.55098438]
[1751698145203,3.81334795,148.44,148.4,6.73823779]
[1751698145415,3.81334795,148.44,148.4,10.55158574]
[1751698147324,11.75891505,148.46,148.4,10.55158574]
[1751698147521,3.81334795,148.44,148.4,10.55158574]
[1751698147828,3.81334795,148.44,148.4,10.5517181]
[1751698149126,3.81334795,148.44,148.4,6.73837015]
[1751698151125,3.81334795,148.41,148.37,6.98]
[1751698151307,3.81334795,148.4,148.37,6.98]
[1751698151620,3.81334795,148.38,148.33,8.35992137]
[1751698151821,39.02704238,148.44,148.33,42.41992137]
[1751698151822,3.81334795,148.36,148.33,42.41992137]
[1751698152005,3.81334795,148.38,148.34,3.81334795]
[1751698153018,3.81334795,148.39,148.34,10.55433567]
[1751698153221,3.81334795,148.38,148.33,68.43988093]
[1751698153425,3.81334795,148.38,148.33,72.25322888]
[1751698154549,5.02291277,148.38,148.33,72.25322888]
[1751698154815,3.81334795,148.38,148.33,72.25322888]
[1751698156826,8.83639264,148.38,148.33,72.25322888]
[1751698157028,3.81334795,148.37,148.33,34.35988093]
[1751698157232,3.81334795,148.37,148.33,68.43988093]
[1751698158014,3.81334795,148.37,148.33,72.25322888]
[1751698158227,6.73899858,148.39,148.33,72.25322888]
[1751698158430,3.81334795,148.37,148.33,72.25322888]
[1751698160130,3.81334795,148.37,148.33,72.31322888]
[1751698160930,8.84058594,148.38,148.33,72.31322888]
[1751698161322,5.02723799,148.37,148.33,72.31322888]
[1751698162410,8.84058594,148.38,148.33,72.31322888]
[1751698162711,5.02723799,148.37,148.33,72.31322888]
[1751698165323,3.81334795,148.38,148.33,72.31322888]
[1751698165626,5.03736733,148.37,148.33,72.31322888]
[1751698165816,3.81334795,148.38,148.33,72.31322888]
[1751698166013,5.03736733,148.37,148.34,18.64964886]
[1751698166241,5.03736733,148.4,148.37,18.64964886]
[1751698166535,5.03736733,148.41,148.38,37.95334795]
[1751698166742,5.03736733,148.4,148.38,37.95334795]
[1751698166922,5.03736733,148.41,148.38,37.95334795]
[1751698167121,5.03736733,148.4,148.38,37.95334795]
[1751698167433,5.03736733,148.41,148.39,3.81334795]
[1751698167626,5.03736733,148.41,148.4,3.81334795]
[1751698168342,5.03736733,148.41,148.39,18.64964886]
[1751698168539,5.03736733,148.41,148.4,3.81334795]
[1751698168734,0.03,148.42,148.39,22.46299681]
[1751698169215,5.06576298,148.42,148.39,22.46299681]
[1751698169411,0.03,148.42,148.39,29.20172887]
[1751698169710,5.06576298,148.42,148.39,25.38838092]
[1751698169915,0.03,148.42,148.39,31.33854308]
[1751698170333,5.06576298,148.42,148.39,31.33854308]
[1751698170535,0.03,148.42,148.39,31.33854308]
[1751698170751,5.06576298,148.42,148.39,31.33854308]
[1751698171046,0.03,148.42,148.39,31.33854308]
[1751698171247,5.06576298,148.42,148.39,31.33854308]
[1751698171414,0.03,148.42,148.39,31.33854308]
[1751698171615,5.06576298,148.42,148.39,31.33854308]
[1751698171834,5.98016216,148.42,148.38,1.5278]
[1751698172144,10.98592514,148.41,148.37,40.09016216]
[1751698172352,5.03576298,148.4,148.37,40.09016216]
[1751698172524,5.03576298,148.39,148.37,46.82975145]
[1751698172821,5.03576298,148.4,148.37,46.82975145]
[1751698173026,5.03576298,148.39,148.37,40.87958929]
[1751698173249,5.03576298,148.4,148.37,40.87958929]
[1751698173432,5.03576298,148.39,148.37,40.87958929]
[1751698173631,5.03576298,148.4,148.37,40.87958929]
[1751698173820,5.03576298,148.39,148.37,40.87958929]
[1751698174141,5.03576298,148.4,148.37,40.87958929]
[1751698175641,5.03576298,148.4,148.37,34.14]
[1751698175842,5.03576298,148.4,148.37,34.12]
[1751698177430,12.68831337,148.41,148.37,34.12]
[1751698177625,5.0365717,148.4,148.37,34.12]
[1751698177940,5.0365717,148.4,148.36,72.81038186]
[1751698180242,5.0365717,148.4,148.37,5.95016216]
[1751698181940,5.0365717,148.41,148.37,5.95016216]
[1751698182141,5.0365717,148.4,148.37,5.95016216]
[1751698182334,5.0365717,148.41,148.37,5.95016216]
[1751698182534,5.0365717,148.4,148.37,5.95016216]
[1751698182736,5.0365717,148.41,148.37,5.95016216]
[1751698183049,5.0365717,148.4,148.37,5.95016216]
[1751698183248,5.0365717,148.41,148.37,5.95016216]
[1751698183546,5.0365717,148.4,148.37,5.95016216]
[1751698183850,5.0365717,148.41,148.37,5.95016216]
[1751698184049,5.0365717,148.4,148.37,5.95016216]
[1751698184254,5.0365717,148.41,148.37,5.95016216]
[1751698184437,5.0365717,148.4,148.37,5.95016216]
[1751698184742,5.0365717,148.41,148.37,5.95016216]
[1751698184935,5.95016216,148.39,148.36,26.0]
[1751698185235,5.03778574,148.38,148.36,60.1]
[1751698185736,5.03778574,148.39,148.36,60.1]
[1751698185920,5.03778574,148.38,148.36,60.1]
[1751698186122,5.03778574,148.39,148.36,32.74035921]
[1751698186350,5.95016216,148.41,148.36,38.69052137]
[1751698186554,5.03805075,148.4,148.36,38.69052137]
[1751698186739,5.03805075,148.39,148.36,38.69052137]
[1751698187048,5.95016216,148.41,148.36,38.69052137]
[1751698187255,5.03805075,148.4,148.36,72.79052137]
[1751698187433,5.03805075,148.39,148.36,72.79052137]
[1751698187749,5.95016216,148.41,148.36,72.79052137]
[1751698187952,5.03807072,148.4,148.36,72.79052137]
[1751698188153,5.03807072,148.39,148.37,5.95016216]
[1751698188355,5.03807072,148.41,148.37,5.95016216]
[1751698188657,5.03807072,148.4,148.37,5.95016216]
[1751698188857,5.03807072,148.39,148.37,5.95016216]
[1751698189151,5.03807072,148.4,148.37,5.95016216]
[1751698189454,5.03807072,148.39,148.37,5.95016216]
[1751698189630,5.03807072,148.4,148.37,5.95016216]
[1751698189947,5.03807072,148.39,148.37,5.95016216]
[1751698190132,5.03807072,148.4,148.37,12.68989534]
[1751698190326,5.03930865,148.39,148.38,5.95016216]
[1751698190549,5.03902215,148.41,148.38,40.05016216]
[1751698190728,5.03902215,148.4,148.38,40.05016216]
[1751698190925,5.03902215,148.41,148.38,40.05016216]
[1751698191136,5.03902215,148.4,148.39,5.95016216]
[1751698191336,5.03902215,148.41,148.39,5.95016216]
[1751698191551,5.03902215,148.4,148.39,5.95016216]
[1751698191736,5.03902215,148.41,148.39,3.80817215]
[1751698191937,5.03902215,148.4,148.39,3.80817215]
[1751698192149,5.03902215,148.41,148.38,44.64717676]
[1751698192357,5.03902215,148.4,148.38,44.64717676]
[1751698192536,0.03,148.42,148.38,44.64717676]
[1751698192849,5.03996049,148.41,148.38,44.64717676]
[1751698193056,5.03996049,148.4,148.38,44.64717676]
[1751698193250,0.03,148.42,148.38,44.64717676]
[1751698193430,5.04074362,148.41,148.38,44.64717676]
[1751698193631,5.04074362,148.4,148.38,44.64717676]
[1751698193860,0.03,148.42,148.38,46.78975459]
[1751698194157,5.04074362,148.41,148.38,46.78975459]
[1751698194330,5.04074362,148.4,148.38,46.78975459]
[1751698194531,0.03,148.42,148.38,46.78975459]
[1751698194731,5.04156921,148.41,148.38,46.78975459]
[1751698194944,5.04156921,148.4,148.38,46.78975459]
[1751698195147,0.03,148.42,148.38,46.78975459]
[1751698195348,5.0422547,148.41,148.38,46.78975459]
[1751698195557,5.0422547,148.4,148.38,46.78975459]
[1751698195765,0.03,148.42,148.38,46.78975459]
[1751698195948,5.04225781,148.41,148.38,46.78975459]
[1751698196144,0.03,148.42,148.38,46.78975459]
[1751698196145,5.04225781,148.4,148.38,46.78975459]
[1751698196346,0.03,148.42,148.38,46.78975459]
[1751698196546,5.04228165,148.41,148.38,46.78975459]
[1751698196766,5.04228165,148.4,148.38,46.78975459]
[1751698196934,0.03,148.42,148.38,46.78975459]
[1751698197350,5.04248134,148.41,148.38,46.78975459]
[1751698197562,5.04248134,148.4,148.38,46.78975459]
[1751698197755,0.03,148.42,148.38,46.78975459]
[1751698197954,5.04230554,148.41,148.38,46.78975459]
[1751698198161,5.04230554,148.4,148.38,46.78975459]
[1751698198336,5.98074998,148.42,148.38,46.78975459]
[1751698198537,5.04272796,148.41,148.38,46.78975459]
[1751698198736,5.04272796,148.4,148.38,46.78975459]
[1751698198937,5.98074998,148.42,148.38,46.78975459]
[1751698199156,5.04272796,148.41,148.38,46.78975459]
[1751698199359,5.04272796,148.4,148.38,46.78975459]
[1751698199546,5.98074998,148.42,148.38,46.78975459]
[1751698199747,5.04303011,148.41,148.38,46.78975459]
[1751698200048,5.04303011,148.4,148.38,46.78975459]
[1751698200246,5.98074998,148.42,148.38,46.78975459]
[1751698200467,5.04332913,148.41,148.38,46.78975459]
[1751698200659,5.04332913,148.4,148.38,46.78975459]
[1751698200850,5.98074998,148.42,148.38,46.78975459]
[1751698201053,5.04332603,148.41,148.38,46.78975459]
[1751698201254,5.04332603,148.4,148.38,46.78975459]
[1751698201459,0.03,148.42,148.38,46.78975459]
[1751698201768,5.04351784,148.41,148.38,46.78975459]
[1751698201937,5.04351784,148.4,148.38,46.78975459]
[1751698202140,0.03,148.42,148.38,46.78975459]
[1751698202362,5.043918,148.41,148.38,46.78975459]
[1751698202561,5.043918,148.4,148.38,46.78975459]
[1751698202762,0.03,148.42,148.38,46.78975459]
[1751698202955,5.04389409,148.41,148.38,46.78975459]
[1751698203158,5.04389409,148.4,148.38,46.78975459]
[1751698203363,0.03,148.42,148.38,46.78975459]
[1751698203567,5.04435374,148.41,148.38,46.78975459]
[1751698203746,5.04435374,148.4,148.38,46.78975459]
[1751698204046,0.03,148.42,148.38,46.78975459]
[1751698204367,5.04435684,148.41,148.38,46.78975459]
[1751698204576,5.04435684,148.4,148.38,46.78975459]
[1751698204762,0.03,148.42,148.38,46.78975459]
[1751698204948,5.04489381,148.41,148.38,46.78975459]
[1751698205267,5.04489381,148.4,148.38,46.78975459]
[1751698205468,0.03,148.42,148.38,46.78975459]
[1751698205764,5.04552912,148.41,148.38,46.78975459]
[1751698205957,5.04552912,148.4,148.38,46.78975459]
[1751698206159,0.03,148.42,148.38,46.78975459]
[1751698206361,5.04624843,148.41,148.38,46.78975459]
[1751698206568,5.04624843,148.4,148.38,46.78975459]
[1751698206770,0.03,148.42,148.38,46.78975459]
[1751698206963,5.04626647,148.41,148.38,46.78975459]
[1751698207157,5.04626647,148.4,148.38,46.78975459]
[1751698207354,5.98074998,148.42,148.38,46.78975459]
[1751698207660,5.04714426,148.41,148.38,46.78975459]
[1751698207846,5.04714426,148.4,148.38,46.78975459]
[1751698208043,5.98074998,148.42,148.38,46.78975459]
[1751698208247,5.04714737,148.41,148.38,46.78975459]
[1751698208462,5.04714737,148.4,148.38,46.78975459]
[1751698208661,5.98074998,148.42,148.38,46.78975459]
[1751698208973,5.04818161,148.41,148.38,46.78975459]
[1751698209168,5.04818161,148.4,148.38,46.78975459]
[1751698209465,5.04818161,148.39,148.38,65.43940345]
[1751698209669,5.04818161,148.39,148.38,59.48865347]
[1751698211370,5.04818161,148.39,148.38,65.43940345]
[1751698215771,5.04818161,148.39,148.38,63.29727872]
[1751698223875,5.04818161,148.39,148.38,64.84237872]
[1751698224178,5.0514242,148.41,148.39,18.64964886]
[1751698224391,0.03,148.42,148.4,37.86862525]
[1751698224572,5.05066119,148.41,148.4,56.51827411]
[1751698225980,5.05066119,148.41,148.4,63.25681858]
[1751698233085,0.03,148.42,148.4,63.25681858]
[1751698243001,0.03,148.42,148.4,59.44819333]
[1751698243197,0.03,148.42,148.4,63.25681858]
[1751698244477,0.03,148.42,148.4,59.44819333]
[1751698244679,0.03,148.42,148.4,63.25681858]
[1751698246000,0.03,148.42,148.4,59.44819333]
[1751698246298,0.03,148.42,148.4,34.06]
[1751698248187,0.03,148.42,148.39,6.73897615]
[1751698248499,0.03,148.42,148.4,34.06]
[1751698256610,0.03,148.42,148.4,40.7984659]
[1751698257486,0.03,148.42,148.4,44.60709115]
[1751698257887,0.03,148.42,148.41,3.80862525]
[1751698258395,0.03,148.42,148.41,10.54671567]
[1751698264214,0.03,148.42,148.41,6.73809042]
[1751698271118,0.03,148.42,148.41,10.54671567]
[1751698274119,0.03,148.42,148.41,6.73809042]
[1751698278724,0.03,148.42,148.4,40.7983961]
[1751698280031,0.03,148.42,148.4,44.60702135]
[1751698283838,0.03,148.42,148.41,18.64964886]
[1751698284836,0.03,148.42,148.41,48.45827411]
[1751698285035,0.03,148.42,148.41,55.19636453]
[1751698293146,0.03,148.42,148.41,25.38773928]
[1751698293318,0.03,148.42,148.41,55.19636453]
[1751698293843,0.03,148.42,148.41,34.04]
[1751698297748,0.03,148.42,148.41,40.77809042]
[1751698301349,0.03,148.42,148.41,63.23636453]
[1751698307653,0.03,148.42,148.41,89.23636453]
[1751698312259,0.03,148.42,148.41,63.23636453]
[1751698343921,0.03,148.42,148.41,70.19636453]
[1751698344503,0.03,148.42,148.41,66.38773928]
[1751698344708,0.03,148.42,148.41,70.19636453]
[1751698365941,5.05426123,148.46,148.44,26.0]
[1751698366135,4.00862525,148.48,148.45,34.02]
[1751698366337,5.05424847,148.47,148.45,34.02]
[1751698366534,5.05424847,148.46,148.45,34.02]
[1751698370465,5.05424847,148.46,148.45,40.75612826]
[1751698370466,5.0543605,148.46,148.45,40.75612826]
[1751698370948,4.00862525,148.48,148.45,40.75612826]
[1751698371153,5.0543605,148.47,148.45,40.75612826]
[1751698371346,5.0543605,148.46,148.45,40.75612826]
[1751698383873,5.0543605,148.46,148.45,59.40577712]
[1751698388174,5.0543605,148.46,148.45,63.21440237]
[1751698388973,5.0543605,148.46,148.45,6.73612826]
[1751698389166,5.0543605,148.46,148.45,52.64964886]
[1751698391382,5.0543605,148.46,148.45,59.3859237]
[1751698393583,5.0539991,148.46,148.45,59.3859237]
[1751698393985,5.0539991,148.46,148.45,63.19454895]
[1751698394295,0.2,148.48,148.45,63.19454895]
[1751698394296,0.2,148.48,148.47,44.64964886]
[1751698394471,11.42014025,148.54,148.51,44.64964886]
[1751698394781,5.04939126,148.53,148.52,34.0]
[1751698395581,8.85801651,148.53,148.52,34.0]
[1751698396154,5.04939126,148.53,148.52,34.0]
[1751698396359,8.85801651,148.53,148.52,34.0]
[1751698396978,5.04939126,148.53,148.52,34.0]
[1751698397171,8.85801651,148.53,148.52,34.0]
[1751698397366,5.04939126,148.53,148.52,40.73309991]
[1751698399075,8.85801651,148.53,148.47,18.64964886]
[1751698399270,3.80862525,148.49,148.48,34.0]
[1751698399477,3.80862525,148.5,148.48,34.0]
[1751698399685,8.85801651,148.5,148.48,34.0]
[1751698399992,5.04939126,148.52,148.48,34.0]
[1751698400178,3.80862525,148.5,148.48,34.0]
[1751698400378,8.85801651,148.49,148.46,6.94]
[1751698400579,1.5987,148.51,148.46,6.94]
[1751698400580,3.80862525,148.47,148.46,6.94]
[1751698401286,3.80862525,148.48,148.46,13.67582109]
[1751698401792,3.80862525,148.48,148.46,6.94]
[1751698403462,8.84605632,148.48,148.46,6.94]
[1751698403670,3.80862525,148.48,148.46,6.94]
[1751698405570,3.80862525,148.47,148.46,6.94]
[1751698408180,3.80862525,148.48,148.46,13.67581061]
[1751698408390,6.1584,148.52,148.47,34.0]
[1751698408588,3.80862525,148.49,148.47,34.0]
[1751698408962,8.84606086,148.49,148.47,34.0]
[1751698409283,3.80862525,148.49,148.47,34.0]
[1751698409786,8.84606086,148.49,148.47,34.0]
[1751698409989,3.80862525,148.49,148.47,34.0]
[1751698410285,8.84606086,148.48,148.46,6.94]
[1751698410489,8.84606086,148.47,148.46,6.94]
[1751698410704,5.03743561,148.48,148.47,18.64964886]
[1751698410906,5.03752654,148.51,148.47,52.80964886]
[1751698411184,5.03752654,148.5,148.47,52.80964886]
[1751698411391,3.80862525,148.49,148.47,52.80964886]
[1751698411691,11.7704987,148.52,148.47,52.80964886]
[1751698411887,5.94462868,148.48,148.47,34.16]
[1751698412289,10.98200505,148.49,148.47,34.16]
[1751698412487,10.98276862,148.48,148.47,34.16]
[1751698412689,5.03813994,148.48,148.47,34.16]
[1751698412887,10.98276862,148.48,148.47,34.16]
[1751698413088,5.94462868,148.48,148.47,34.16]
[1751698413290,10.98276862,148.48,148.47,34.16]
[1751698414190,10.98276862,148.48,148.45,41.15615641]
[1751698414393,5.94462868,148.49,148.46,18.64964886]
[1751698414694,5.03787961,148.48,148.47,53.08964886]
[1751698414877,5.03787961,148.49,148.47,53.08964886]
[1751698415179,5.94462868,148.5,148.47,53.08964886]
[1751698415497,10.9822966,148.49,148.47,53.08964886]
[1751698415698,10.9822966,148.48,148.42,25.58964886]
[1751698415889,5.94462868,148.45,148.44,18.64964886]
[1751698416197,6.73409338,148.5,148.44,18.64964886]
[1751698416198,5.94462868,148.46,148.44,18.64964886]
[1751698416794,5.94462868,148.45,148.44,18.64964886]
[1751698416997,5.94462868,148.45,148.44,53.08964886]
[1751698417186,5.94462868,148.45,148.44,18.64964886]
[1751698417588,5.94462868,148.45,148.43,41.19707617]
[1751698417980,5.94462868,148.44,148.43,59.84672503]
[1751698418900,5.94462868,148.44,148.43,59.82672503]
[1751698419100,5.94462868,148.44,148.43,53.08964886]
[1751698420196,5.94462868,148.44,148.42,6.94]
[1751698420405,5.94462868,148.43,148.42,6.94]
[1751698421101,10.98274704,148.43,148.39,53.08964886]
[1751698421292,5.94462868,148.4,148.39,53.08964886]
[1751698421493,5.94462868,148.41,148.39,53.08964886]
[1751698422202,5.94462868,148.42,148.39,59.80837769]
[1751698422405,5.94462868,148.42,148.39,59.30837769]
[1751698422783,5.94462868,148.42,148.39,59.32837769]
[1751698424608,5.94462868,148.42,148.39,58.82837769]
[1751698426606,6.73582109,148.46,148.4,18.64964886]
[1751698426906,5.94462868,148.43,148.4,18.64964886]
[1751698428008,5.94462868,148.44,148.4,18.64964886]
[1751698428217,5.94462868,148.44,148.41,34.42]
[1751698428522,5.94462868,148.42,148.39,6.73872883]
[1751698428805,5.94462868,148.42,148.4,53.06964886]
[1751698430008,5.94462868,148.41,148.4,53.06964886]
[1751698430809,5.94462868,148.41,148.4,34.42]
[1751698431000,5.94462868,148.42,148.4,41.15836261]
[1751698431200,5.94462868,148.43,148.4,41.15836261]
[1751698433616,6.73582109,148.46,148.4,41.15836261]
[1751698433797,5.94462868,148.43,148.4,41.15836261]
[1751698436814,5.94462868,148.42,148.4,34.42]
[1751698436999,6.73582109,148.46,148.4,34.42]
[1751698437200,5.94462868,148.42,148.4,41.15852913]
[1751698438620,5.94462868,148.42,148.39,59.82864744]
[1751698440917,6.73582109,148.46,148.39,59.82864744]
[1751698441116,5.94462868,148.42,148.39,59.82864744]
[1751698441825,5.94462868,148.4,148.38,26.0]
[1751698442203,5.94462868,148.4,148.38,60.46]
[1751698442602,5.94462868,148.39,148.37,18.64964886]
[1751698442810,5.94462868,148.39,148.37,79.10964886]
[1751698443010,5.94462868,148.4,148.37,85.84948292]
[1751698443535,5.94462868,148.4,148.37,51.38948292]
[1751698443828,5.94462868,148.4,148.37,85.82948292]
[1751698448029,5.94462868,148.4,148.37,59.82948292]
[1751698448327,5.94462868,148.4,148.37,85.82948292]
[1751698448528,5.94462868,148.39,148.37,85.82948292]
[1751698449030,5.94462868,148.38,148.36,6.94]
[1751698449211,5.94462868,148.37,148.36,6.94]
[1751698451414,5.94462868,148.37,148.35,25.39043356]
[1751698451849,5.94462868,148.37,148.35,18.64964886]
[1751698452230,5.94462868,148.36,148.33,25.45126627]
[1751698452434,5.94462868,148.36,148.34,18.64964886]
[1751698453232,5.94462868,148.36,148.34,25.39073405]
[1751698454840,5.94462868,148.37,148.34,25.39073405]
[1751698455637,5.94462868,148.38,148.34,25.39073405]
[1751698457531,5.94462868,148.37,148.34,25.39073405]
[1751698462533,5.94462868,148.36,148.34,18.64964886]
[1751698463542,5.94462868,148.36,148.34,25.39090777]
[1751698465239,5.94462868,148.37,148.34,25.39090777]
[1751698465437,10.97059487,148.37,148.34,25.39090777]
[1751698465638,5.94462868,148.37,148.34,25.39090777]
[1751698466158,10.97059487,148.37,148.34,25.39090777]
[1751698466358,5.94462868,148.38,148.34,25.39090777]
[1751698466656,10.97059487,148.38,148.34,31.33553645]
[1751698466858,5.94462868,148.38,148.34,31.33553645]
[1751698467158,10.97059487,148.39,148.34,25.39090777]
[1751698467355,5.02596619,148.38,148.34,31.33553645]
[1751698468460,5.94462868,148.39,148.34,31.33553645]
[1751698468640,5.02596619,148.38,148.34,31.33553645]
[1751698469855,5.94462868,148.39,148.34,31.33553645]
[1751698470249,10.9780865,148.39,148.34,31.33553645]
[1751698470450,5.94462868,148.39,148.34,31.33553645]
[1751698470756,10.9780865,148.39,148.34,31.33553645]
[1751698470942,5.03345782,148.38,148.34,31.33553645]
[1751698471141,5.03345782,148.38,148.34,25.39090777]
[1751698471343,5.03345782,148.38,148.34,31.33553645]
[1751698471843,10.9780865,148.38,148.34,25.39090777]
[1751698472044,5.03345782,148.39,148.34,31.33553645]
[1751698472245,10.9780865,148.38,148.34,31.33553645]
[1751698472459,5.94462868,148.38,148.34,31.33553645]
[1751698472658,10.9780865,148.38,148.34,31.33553645]
[1751698472845,5.94462868,148.38,148.34,31.33553645]
[1751698473046,10.9780865,148.38,148.34,25.39090777]
[1751698473266,5.94462868,148.38,148.34,25.39090777]
[1751698473581,10.9780865,148.38,148.34,25.39090777]
[1751698473765,5.94462868,148.38,148.34,25.39090777]
[1751698473957,10.9780865,148.38,148.34,25.39090777]
[1751698474151,5.94462868,148.38,148.34,31.33553645]
[1751698474353,10.9780865,148.38,148.34,31.33553645]
[1751698474551,5.94462868,148.38,148.34,31.33553645]
[1751698475071,10.9780865,148.38,148.34,31.33553645]
[1751698475252,5.94462868,148.38,148.34,31.33553645]
[1751698475655,10.9780865,148.38,148.34,31.33553645]
[1751698475856,5.94462868,148.38,148.34,31.33553645]
[1751698476357,10.9780865,148.38,148.34,31.33553645]
[1751698476666,5.94462868,148.38,148.34,25.39090777]
[1751698476957,5.94462868,148.38,148.34,31.33553645]
[1751698477166,10.9780865,148.38,148.34,31.33553645]
[1751698477470,5.94462868,148.38,148.34,31.33553645]
[1751698477849,5.03740616,148.38,148.34,31.33553645]
[1751698478064,5.03740616,148.38,148.34,31.39553645]
[1751698478569,5.97462868,148.39,148.34,31.39553645]
[1751698478760,5.03740616,148.38,148.34,31.39553645]
[1751698479569,5.97462868,148.39,148.34,31.39553645]
[1751698479867,10.98399679,148.38,148.34,31.39553645]
[1751698480068,5.03947978,148.37,148.34,31.39553645]
[1751698480263,5.94462868,148.38,148.34,31.39553645]
[1751698480470,5.04059473,148.37,148.34,31.39553645]
[1751698480662,5.94462868,148.38,148.34,31.39553645]
[1751698480863,5.04059608,148.37,148.34,31.39553645]
[1751698481080,5.94462868,148.38,148.34,31.39553645]
[1751698481252,5.04059473,148.37,148.34,31.39553645]
[1751698481452,5.94462868,148.38,148.34,31.39553645]
[1751698481653,10.98648521,148.37,148.34,25.45090777]
[1751698481863,5.04185653,148.36,148.34,25.45090777]
[1751698482157,3.81120156,148.37,148.34,25.45090777]
[1751698482353,5.04208135,148.36,148.34,25.45090777]
[1751698482563,3.81120156,148.37,148.34,0.06]
[1751698482765,5.0435576,148.36,148.34,0.06]
[1751698483053,3.81120156,148.37,148.34,0.06]
[1751698483257,5.04355708,148.36,148.34,6.80125167]
[1751698483458,5.04355708,148.35,148.34,25.45090053]
[1751698485062,5.04355708,148.35,148.34,18.70964886]
[1751698485374,5.04355708,148.35,148.34,0.06]
[1751698489575,5.04355708,148.35,148.34,31.40622395]
[1751698490578,12.26786283,148.39,148.34,31.40622395]
[1751698490770,5.0512948,148.38,148.34,31.40622395]
[1751698491070,5.0512948,148.37,148.34,31.40622395]
[1751698491273,5.0512948,148.36,148.34,31.40622395]
[1751698491471,5.0512948,148.35,148.34,31.40622395]
[1751698493277,5.0512948,148.35,148.34,25.45091891]
[1751698496589,5.0512948,148.35,148.34,31.40622395]
[1751698503790,5.0512948,148.35,148.34,29.26118093]
[1751698505191,5.0512948,148.35,148.34,25.45091891]
[1751698505390,5.0512948,148.35,148.34,6.80127005]
[1751698505587,5.0512948,148.35,148.34,0.06]
[1751698506186,5.0512948,148.35,148.34,6.80127005]
[1751698507086,5.0512948,148.35,148.34,0.06]
[1751698508899,5.0512948,148.35,148.34,3.87026202]
[1751698509804,5.0512948,148.35,148.34,10.61153207]
[1751698510007,5.0512948,148.35,148.34,29.26118093]
[1751698510403,6.31255779,148.39,148.35,18.64964886]
[1751698510591,5.05407946,148.38,148.35,22.45991088]
[1751698510791,5.05407946,148.37,148.35,22.45991088]
[1751698510993,5.05407946,148.36,148.35,22.45991088]
[1751698511421,5.05407946,148.36,148.34,10.61153207]
[1751698511704,5.05407946,148.35,148.34,29.26118093]
[1751698511899,5.05407946,148.35,148.34,6.80127005]
[1751698512601,5.05407946,148.35,148.34,0.06]
[1751698514899,8.86434148,148.35,148.34,0.06]
[1751698516202,15.60515711,148.35,148.34,0.06]
[1751698517002,8.86434148,148.35,148.34,0.06]
[1751698517799,11.01142448,148.35,148.34,0.06]
[1751698519121,17.75224011,148.35,148.34,0.06]
[1751698528820,50.0347979,148.35,148.34,0.06]
[1751698531112,132.8347979,148.35,148.34,0.06]
[1751698531418,24.0347979,148.35,148.34,1e-08]
[1751698531754,26.0,148.32,148.28,0.06]
[1751698531920,5.95734502,148.29,148.28,0.06]
[1751698532119,11.01142448,148.29,148.28,0.06]
[1751698533452,5.95734502,148.29,148.28,0.06]
[1751698533634,11.01142448,148.29,148.28,0.06]
[1751698533820,5.95734502,148.29,148.28,0.06]
[1751698534043,11.01142448,148.29,148.28,0.06]
[1751698534229,17.75496753,148.29,148.28,0.06]
[1751698535043,5.05407946,148.29,148.28,0.06]
[1751698535430,11.01142448,148.3,148.28,0.06]
[1751698536423,17.75458218,148.3,148.28,0.06]
[1751698536620,11.01142448,148.29,148.28,0.06]
[1751698539747,8.869334,148.29,148.28,0.06]
[1751698539915,3.81525454,148.29,148.28,0.06]
[1751698540719,5.02925482,148.29,148.28,0.06]
[1751698540920,3.81525454,148.3,148.28,0.06]
[1751698542346,11.77205391,148.31,148.28,0.06]
[1751698542533,3.81525454,148.3,148.28,0.06]
[1751698543047,15.58730845,148.31,148.28,0.06]
[1751698543250,3.81525454,148.34,148.29,3.81525454]
[1751698543543,5.02845536,148.33,148.29,3.81525454]
[1751698544342,5.02845536,148.33,148.3,3.81525454]
[1751698544755,5.02845536,148.34,148.3,3.81525454]
[1751698545424,5.02845536,148.34,148.31,3.81525454]
[1751698545629,5.02845536,148.34,148.32,3.81525454]
[1751698545824,8.8437099,148.36,148.32,3.81525454]
[1751698546029,5.02845536,148.36,148.32,3.81525454]
[1751698546231,5.02845536,148.35,148.32,3.81525454]
[1751698546436,5.02845536,148.36,148.32,3.81525454]
[1751698546735,5.02845536,148.35,148.33,3.81525454]
[1751698546934,5.02845536,148.37,148.33,3.81525454]